fUST/lending_fUST_20260604
["ID","MTS","AMOUNT","RATE_DAILY","PERIOD"]
[423986223,1780536641000,-1195.57,0.00014794,2]
[423986214,1780536641000,-426.53,0.00014793,2]
[423986216,1780536641000,-500.0,0.00014793,2]
[423986226,1780536641000,-500.0,0.00014794,2]
[423986232,1780536641000,-500.0,0.00015066,2]
[423986231,1780536641000,-244.0,0.00014932,2]
[423986235,1780536641000,-500.0,0.00015066,2]
[423986233,1780536641000,-500.0,0.00015066,2]
[423986225,1780536641000,-500.0,0.00014794,2]
[423986227,1780536641000,-500.0,0.00014794,2]
[423986229,1780536641000,-508.75830287,0.00014794,2]
[423986230,1780536641000,-1000.0,0.00014932,2]
[423986224,1780536641000,-500.0,0.00014794,2]
[423986218,1780536641000,-500.0,0.00014793,2]
[423986215,1780536641000,-280.48007518,0.00014793,2]
[423986234,1780536641000,-500.0,0.00015066,2]
[423986283,1780536642000,-1195.57,0.0001589,2]
[423986278,1780536642000,-177.05,0.00015888,2]
[423986288,1780536642000,-1195.57,0.00016164,2]
[423986290,1780536642000,-500.0,0.00016164,2]
[423986291,1780536642000,-500.0,0.00016367,2]
[423986302,1780536642000,-152.0,0.00016477,2]
[423986292,1780536642000,-162.380719,0.00016367,2]
[423986300,1780536642000,-152.0,0.00016442,2]
[423986293,1780536642000,-152.0,0.00016411,2]
[423986299,1780536642000,-338.50853306,0.00016438,2]
[423986297,1780536642000,-1195.57,0.00016438,2]
[423986294,1780536642000,-1000.0,0.00016426,2]
[423986289,1780536642000,-500.0,0.00016164,2]
[423986301,1780536642000,-152.0,0.00016477,2]
[423986284,1780536642000,-500.0,0.0001589,2]
[423986269,1780536642000,-500.0,0.00015614,2]
[423986286,1780536642000,-200.53174204,0.0001595,5]
[423986295,1780536642000,-492.0,0.00016426,2]
[423986272,1780536642000,-1195.57,0.00015616,2]
[423986270,1780536642000,-500.0,0.00015615,2]
[423986271,1780536642000,-180.40420177,0.00015615,2]
[423986273,1780536642000,-500.0,0.00015616,2]
[423986275,1780536642000,-152.0,0.00015738,7]
[423986285,1780536642000,-500.0,0.0001589,2]
[423986276,1780536642000,-152.0,0.00015738,7]
[423986277,1780536642000,-1439.3565655,0.00015756,2]
[423986280,1780536642000,-187.19083403,0.00015888,2]
[423986279,1780536642000,-500.0,0.00015888,2]
[423986281,1780536642000,-335.92457207,0.00015888,2]
[423986282,1780536642000,-627.59,0.00015889,2]
[423986287,1780536642000,-500.0,0.00016162,2]
[423986274,1780536642000,-500.0,0.00015616,2]
[423986296,1780536642000,-500.0,0.00016436,2]
[423986303,1780536642000,-152.0,0.00016583,2]
[423986305,1780536642000,-152.0,0.00016645,7]
[423986336,1780536642000,-500.0,0.0001452,2]
[423986337,1780536642000,-414.60192342,0.00014794,2]
[423986335,1780536642000,-2264.69015977,0.00017283,2]
[423986334,1780536642000,-468039.39142061,0.00017283,2]
[423986333,1780536642000,-466.84415515,0.0001726,2]
[423986330,1780536642000,-1439.3565655,0.000172,2]
[423986324,1780536642000,-1195.57,0.00016986,2]
[423986331,1780536642000,-500.0,0.00017258,2]
[423986332,1780536642000,-1195.57,0.0001726,2]
[423986327,1780536642000,-7326.50212023,0.00017,2]
[423986322,1780536642000,-500.0,0.00016984,2]
[423986329,1780536642000,-294.838972,0.00017107,2]
[423986321,1780536642000,-500.0,0.00016712,2]
[423986328,1780536642000,-10178.39969455,0.00017,2]
[423986319,1780536642000,-500.0,0.0001671,2]
[423986326,1780536642000,-500.0,0.00016986,2]
[423986318,1780536642000,-152.0,0.00016655,7]
[423986320,1780536642000,-1195.57,0.00016712,2]
[423986316,1780536642000,-152.0,0.0001665,7]
[423986315,1780536642000,-152.0,0.0001665,7]
[423986317,1780536642000,-152.0,0.00016655,7]
[423986306,1780536642000,-152.0,0.00016645,7]
[423986310,1780536642000,-152.0,0.00016645,7]
[423986338,1780536642000,-5475.12730766,0.00017283,2]
[423986298,1780536642000,-500.0,0.00016438,2]
[423986307,1780536642000,-152.0,0.00016645,7]
[423986311,1780536642000,-152.0,0.00016649,2]
[423986309,1780536642000,-152.0,0.00016645,7]
[423986304,1780536642000,-152.0,0.00016616,2]
[423986314,1780536642000,-152.0,0.0001665,7]
[423986312,1780536642000,-152.0,0.00016649,2]
[423986308,1780536642000,-152.0,0.00016645,7]
[423986313,1780536642000,-152.0,0.0001665,7]
[423986374,1780536643000,151.0,8.2e-05,2]
[423986378,1780536643000,-279.26228562,0.00013698,2]
[423986380,1780536643000,-220.73771438,0.00013698,2]
[423986371,1780536643000,-10293.86166016,0.00017283,2]
[423986383,1780536643000,-6010.78374551,0.00017283,2]
[423986382,1780536643000,-6297.86650006,0.00017283,2]
[423986381,1780536643000,-510.0623402,0.00013972,2]
[423986379,1780536643000,-5000.0,0.00013561,2]
[423986514,1780536646000,-500.0,0.00013971,2]
[423986522,1780536646000,-309.41173685,0.00017283,2]
[423986520,1780536646000,-30757.81757817,0.00017283,2]
[423986518,1780536646000,-152.0,0.00016616,2]
[423986516,1780536646000,-502.01724519,0.00014245,2]
[423986547,1780536683000,150.26826686,0.00023638,120]
[423986548,1780536688000,2584.7685367,0.00010408,2]
[423986550,1780536708000,-5000.0,0.00013425,2]
[423986552,1780536725000,-2849.48768569,0.00013561,2]
[423986553,1780536742000,-4573.90492105,0.00013425,2]
[423986557,1780536830000,152.0,0.0002,120]
[423986558,1780536831000,152.0,0.000217,120]
[423986564,1780536987000,20000.0,0.0002364,120]
[423986566,1780537014000,20000.0,0.0002364,120]
[423986604,1780537257000,216.22,8.205e-05,2]
[423986646,1780537746000,661.99,8.2e-05,2]
[423986783,1780537832000,-279.524,0.00010781,2]
[423986785,1780537832000,-625.0,0.00010781,2]
[423987358,1780537840000,-325.80027339,0.00010781,2]
[423987435,1780537841000,-513.34768158,0.00013698,2]
[423987449,1780537841000,-500.0,0.00013698,2]
[423987439,1780537841000,-500.0,0.00013698,2]
[423987458,1780537841000,-520.95968177,0.00013698,2]
[423987454,1780537841000,-503.30584905,0.00013698,2]
[423987456,1780537841000,-545.21390701,0.00013698,2]
[423987447,1780537841000,-505.62049064,0.00013698,2]
[423987445,1780537841000,-311.20381068,0.00013698,2]
[423987441,1780537841000,-500.0,0.00013698,2]
[423987450,1780537841000,-500.89715183,0.00013698,2]
[423987452,1780537841000,-501.08017174,0.00013698,2]
[423987437,1780537841000,-514.49648062,0.00013698,2]
[423987470,1780537841000,-500.0,0.00013698,2]
[423987472,1780537841000,-500.0,0.00013698,2]
[423987464,1780537841000,-515.81173746,0.00013698,2]
[423987460,1780537841000,-511.62663208,0.00013698,2]
[423987462,1780537841000,-500.0,0.00013698,2]
[423987475,1780537841000,-505.94347747,0.00013698,2]
[423987477,1780537841000,-505.0031544,0.00013698,2]
[423987479,1780537841000,-500.0,0.00013698,2]
[423987481,1780537841000,-500.0,0.00013698,2]
[423987468,1780537841000,-536.78034457,0.00013698,2]
[423987443,1780537841000,-501.1337154,0.00013698,2]
[423987433,1780537841000,-502.28237626,0.00013698,2]
[423987431,1780537841000,-507.57118577,0.00013698,2]
[423987425,1780537841000,-501.59754445,0.00013698,2]
[423987385,1780537841000,-3769.67572661,0.00010781,2]
[423987387,1780537841000,-4573.90492105,0.0001089,2]
[423987398,1780537841000,-300.0,0.00011219,2]
[423987402,1780537841000,-300.0,0.00011219,2]
[423987400,1780537841000,-300.0,0.00011219,2]
[423987396,1780537841000,-300.0,0.00011219,2]
[423987389,1780537841000,-1053.0,0.00011,2]
[423987393,1780537841000,-300.0,0.00011219,2]
[423987391,1780537841000,-300.0,0.00011219,2]
[423987404,1780537841000,-300.0,0.00011219,2]
[423987423,1780537841000,-195.37793221,0.00013698,2]
[423987394,1780537841000,-300.0,0.00011219,2]
[423987409,1780537841000,-300.0,0.00011219,2]
[423987406,1780537841000,-300.0,0.00011219,2]
[423987411,1780537841000,-300.0,0.00011219,2]
[423987413,1780537841000,-300.0,0.00011219,2]
[423987415,1780537841000,-300.0,0.00011219,2]
[423987417,1780537841000,-300.0,0.00011219,2]
[423987419,1780537841000,-207.3342043,0.00012835,2]
[423987427,1780537841000,-505.42589653,0.00013698,2]
[423987429,1780537841000,-500.0,0.00013698,2]
[423987421,1780537841000,-5177.6912689,0.00013598,2]
[423987408,1780537841000,-300.0,0.00011219,2]
[423987486,1780537841000,-500.0,0.00013698,2]
[423987474,1780537841000,-530.50659489,0.00013698,2]
[423987483,1780537841000,-500.0,0.00013698,2]
[423987541,1780537841000,-501.3084917,0.00013972,2]
[423987542,1780537841000,-501.98611492,0.00013972,2]
[423987543,1780537841000,-436.67123319,0.00013972,2]
[423987547,1780537841000,-500.49361439,0.00014244,2]
[423987545,1780537841000,-1027.39,0.00013972,2]
[423987546,1780537841000,-500.0,0.00013972,2]
[423987549,1780537841000,-500.0,0.00014244,2]
[423987548,1780537841000,-500.0,0.00014244,2]
[423987544,1780537841000,-500.0,0.00013972,2]
[423987550,1780537841000,-500.0,0.00014244,2]
[423987551,1780537841000,-225.73829517,0.00014244,2]
[423987552,1780537841000,-500.0,0.00014244,2]
[423987555,1780537841000,-500.0,0.00014244,2]
[423987557,1780537841000,-500.0,0.00014246,2]
[423987559,1780537841000,-500.0,0.00014246,2]
[423987554,1780537841000,-525.44757484,0.00014244,2]
[423987553,1780537841000,-500.0,0.00014244,2]
[423987558,1780537841000,-507.12781174,0.00014246,2]
[423987560,1780537841000,-500.0,0.00014246,2]
[423987556,1780537841000,-512.69462959,0.00014246,2]
[423987561,1780537841000,-500.0,0.00014246,2]
[423987563,1780537841000,-609.56,0.00014246,2]
[423987562,1780537841000,-1027.39,0.00014246,2]
[423987539,1780537841000,-500.0,0.00013972,2]
[423987537,1780537841000,-500.0,0.00013972,2]
[423987485,1780537841000,-512.69678707,0.00013698,2]
[423987533,1780537841000,-546.99314043,0.00013972,2]
[423987535,1780537841000,-500.0,0.00013972,2]
[423987488,1780537841000,-505.43318546,0.00013698,2]
[423987490,1780537841000,-521.98624453,0.00013698,2]
[423987499,1780537841000,-518.17429359,0.00013698,2]
[423987494,1780537841000,-500.0,0.00013698,2]
[423987492,1780537841000,-506.1855341,0.00013698,2]
[423987507,1780537841000,-560.85786692,0.00013698,2]
[423987501,1780537841000,-500.0,0.00013698,2]
[423987497,1780537841000,-502.30381701,0.00013698,2]
[423987503,1780537841000,-1027.39,0.00013698,2]
[423987505,1780537841000,-513.12317444,0.00013698,2]
[423987496,1780537841000,-502.40074076,0.00013698,2]
[423987517,1780537841000,-500.0,0.00013698,2]
[423987525,1780537841000,-506.24196551,0.00013972,2]
[423987513,1780537841000,-630.27048903,0.00013698,2]
[423987531,1780537841000,-502.14321573,0.00013972,2]
[423987529,1780537841000,-507.75698842,0.00013972,2]
[423987515,1780537841000,-500.0,0.00013698,2]
[423987527,1780537841000,-500.0,0.00013972,2]
[423987520,1780537841000,-600.0,0.00013971,2]
[423987511,1780537841000,-337.1,0.00013698,2]
[423987509,1780537841000,-504.6431484,0.00013698,2]
[423987523,1780537841000,-500.0,0.00013972,2]
[423987519,1780537841000,-1000.0,0.00013699,2]
[423987607,1780537842000,-1027.39,0.00016986,2]
[423987602,1780537842000,-160.33801252,0.00016645,7]
[423987609,1780537842000,-1000.0,0.000172,2]
[423987605,1780537842000,-1027.39,0.00016712,2]
[423987603,1780537842000,-152.0,0.0001665,7]
[423987598,1780537842000,-154.62,0.00016457,2]
[423987604,1780537842000,-152.0,0.00016655,7]
[423987599,1780537842000,-5177.69126886,0.00016641,2]
[423987600,1780537842000,-152.0,0.00016645,7]
[423987597,1780537842000,-1027.39,0.00016438,2]
[423987606,1780537842000,-864.0,0.00016905,2]
[423987601,1780537842000,-152.0,0.00016645,7]
[423987608,1780537842000,-181.74541611,0.000171,2]
[423987642,1780537842000,-151.5,0.00017851,2]
[423987613,1780537842000,-1273.73518578,0.000173,2]
[423987621,1780537842000,-1027.39,0.00017808,2]
[423987627,1780537842000,-172.0,0.00017845,2]
[423987615,1780537842000,-1027.39,0.00017534,2]
[423987624,1780537842000,-192.93950315,0.00017829,2]
[423987630,1780537842000,-156.0,0.00017845,2]
[423987617,1780537842000,-203.82484021,0.00017769,2]
[423987619,1780537842000,-224.66005675,0.00017769,2]
[423987632,1780537842000,-616.96075762,0.0001785,2]
[423987638,1780537842000,-151.5,0.00017851,2]
[423987594,1780537842000,-297.3679042,0.00016239,2]
[423987640,1780537842000,-500.0,0.00017851,2]
[423987635,1780537842000,-402.88060751,0.0001785,2]
[423987611,1780537842000,-1027.39,0.0001726,2]
[423987595,1780537842000,-1167.4364123,0.00016239,2]
[423987582,1780537842000,-720.0,0.00015368,2]
[423987588,1780537842000,-152.0,0.00015851,2]
[423987567,1780537842000,-482.59955043,0.0001452,2]
[423987566,1780537842000,-500.0,0.0001452,2]
[423987568,1780537842000,-158.48614171,0.0001452,2]
[423987569,1780537842000,-500.0,0.0001452,2]
[423987570,1780537842000,-500.0,0.0001452,2]
[423987645,1780537842000,-500.0,0.00017851,2]
[423987571,1780537842000,-1027.39,0.0001452,2]
[423987565,1780537842000,-500.0,0.00014518,2]
[423987564,1780537842000,-247.36540912,0.00014518,2]
[423987573,1780537842000,-330.94876921,0.00014792,2]
[423987578,1780537842000,-1027.39,0.00014794,2]
[423987583,1780537842000,-166.0,0.0001551,2]
[423987577,1780537842000,-500.0,0.00014794,2]
[423987596,1780537842000,-39581.1092095,0.00016239,2]
[423987576,1780537842000,-500.0,0.00014794,2]
[423987575,1780537842000,-469.82041407,0.00014794,2]
[423987584,1780537842000,-156.0,0.0001551,2]
[423987579,1780537842000,-557.07856063,0.00015068,2]
[423987585,1780537842000,-156.0,0.0001551,2]
[423987580,1780537842000,-1027.39,0.00015068,2]
[423987581,1780537842000,-1027.39,0.00015342,2]
[423987592,1780537842000,-152.0,0.00015913,2]
[423987586,1780537842000,-1027.39,0.00015616,2]
[423987593,1780537842000,-1027.39,0.00016164,2]
[423987587,1780537842000,-244.74121202,0.00015833,2]
[423987591,1780537842000,-152.0,0.00015913,2]
[423987589,1780537842000,-152.0,0.00015851,2]
[423987590,1780537842000,-1027.39,0.0001589,2]
[423987574,1780537842000,-190.88355401,0.00014792,2]
[423987572,1780537842000,-169.66663616,0.00014792,2]
[423987656,1780537842000,-612.91347708,0.00017851,2]
[423987659,1780537842000,-500.0,0.00017851,2]
[423987688,1780537842000,-1051.0,0.00017851,2]
[423987700,1780537842000,-1066.06496111,0.00017851,2]
[423987702,1780537842000,-1027.39,0.00018082,2]
[423987703,1780537842000,-315.08484431,0.00018122,2]
[423987701,1780537842000,-154.49277976,0.00017851,2]
[423987707,1780537842000,-201.52335523,0.00018138,2]
[423987705,1780537842000,-176.39851245,0.00018123,2]
[423987706,1780537842000,-449.32011351,0.00018123,2]
[423987704,1780537842000,-407.64968042,0.00018123,2]
[423987708,1780537842000,-167.41298249,0.00018138,2]
[423987710,1780537842000,-182.3044656,0.00018184,2]
[423987712,1780537842000,-1027.39,0.00018356,2]
[423987713,1780537842000,-7085.43836827,0.00018375,2]
[423987697,1780537842000,-1051.0,0.00017851,2]
[423987709,1780537842000,-385.87900629,0.00018184,2]
[423987723,1780537842000,-1027.39,0.00018904,2]
[423987724,1780537842000,-164.47,0.00018904,2]
[423987725,1780537842000,-547.53,0.00019093,3]
[423987728,1780537842000,-821.32,0.00019093,3]
[423987714,1780537842000,-3208.23535074,0.00018375,2]
[423987729,1780537842000,-1095.06,0.00019103,3]
[423987718,1780537842000,-1000.0,0.00018595,2]
[423987717,1780537842000,-220.3856371,0.00018527,2]
[423987653,1780537842000,-500.0,0.00017851,2]
[423987721,1780537842000,-1000.0,0.000188,4]
[423987720,1780537842000,-164.47,0.0001863,2]
[423987719,1780537842000,-1027.39,0.0001863,2]
[423987716,1780537842000,-1000.0,0.00018418,5]
[423987711,1780537842000,-1104.3521798,0.00018302,2]
[423987696,1780537842000,-1051.0,0.00017851,2]
[423987715,1780537842000,-253.1028355,0.00018394,2]
[423987687,1780537842000,-1051.0,0.00017851,2]
[423987694,1780537842000,-1051.0,0.00017851,2]
[423987661,1780537842000,-500.0,0.00017851,2]
[423987648,1780537842000,-219.77131946,0.00017851,2]
[423987663,1780537842000,-500.0,0.00017851,2]
[423987662,1780537842000,-500.0,0.00017851,2]
[423987664,1780537842000,-509.58247412,0.00017851,2]
[423987650,1780537842000,-500.0,0.00017851,2]
[423987666,1780537842000,-500.0,0.00017851,2]
[423987670,1780537842000,-500.0,0.00017851,2]
[423987668,1780537842000,-500.0,0.00017851,2]
[423987674,1780537842000,-1051.0,0.00017851,2]
[423987675,1780537842000,-1051.0,0.00017851,2]
[423987673,1780537842000,-1051.0,0.00017851,2]
[423987682,1780537842000,-1051.0,0.00017851,2]
[423987660,1780537842000,-611.00624335,0.00017851,2]
[423987672,1780537842000,-328.39761883,0.00017851,2]
[423987683,1780537842000,-1051.0,0.00017851,2]
[423987695,1780537842000,-1051.0,0.00017851,2]
[423987691,1780537842000,-1051.0,0.00017851,2]
[423987699,1780537842000,-1051.0,0.00017851,2]
[423987693,1780537842000,-1051.0,0.00017851,2]
[423987692,1780537842000,-1051.0,0.00017851,2]
[423987690,1780537842000,-1051.0,0.00017851,2]
[423987684,1780537842000,-1051.0,0.00017851,2]
[423987680,1780537842000,-1051.0,0.00017851,2]
[423987689,1780537842000,-1051.0,0.00017851,2]
[423987686,1780537842000,-1051.0,0.00017851,2]
[423987698,1780537842000,-1051.0,0.00017851,2]
[423987678,1780537842000,-1051.0,0.00017851,2]
[423987685,1780537842000,-1051.0,0.00017851,2]
[423987776,1780537843000,-1898.47250926,0.00019632,2]
[423987767,1780537843000,-1143.10783754,0.00019632,2]
[423987765,1780537843000,-731.58901603,0.00019632,2]
[423987761,1780537843000,-228.62156751,0.00019632,2]
[423987755,1780537843000,-2208.675,0.00019511,2]
[423987757,1780537843000,-3638.479,0.00019511,2]
[423987759,1780537843000,-165.17,0.000196,10]
[423987747,1780537843000,-1027.39,0.00019452,2]
[423987745,1780537843000,-150.49180963,0.00019353,2]
[423987753,1780537843000,-1840.17,0.00019511,2]
[423987763,1780537843000,-411.51882151,0.00019632,2]
[423987741,1780537843000,-248.15071468,0.00019342,3]
[423987749,1780537843000,-164.47,0.00019452,2]
[423987743,1780537843000,-461.375,0.00019353,2]
[423987738,1780537843000,-512.50779477,0.00019342,3]
[423987734,1780537843000,-164.47,0.00019178,2]
[423987736,1780537843000,-2637.9096231,0.00019268,2]
[423987733,1780537843000,-1027.39,0.00019178,2]
[423987739,1780537843000,-1246.1929161,0.00019342,3]
[423987737,1780537843000,-660.14946217,0.00019342,3]
[423987735,1780537843000,-1000.0,0.000192,5]
[423987732,1780537843000,-273.76,0.00019103,3]
[423987772,1780537843000,-843.76555967,0.00019632,2]
[423987751,1780537843000,-544.806,0.00019511,2]
[423987768,1780537843000,-263.6767374,0.00019632,2]
[423987798,1780537843000,-164.47,0.00019726,2]
[423987778,1780537843000,-179.85451507,0.00019632,2]
[423987816,1780537843000,-64501.61674805,0.0001992,2]
[423987815,1780537843000,-197.186985,0.00019902,2]
[423987814,1780537843000,-197.186985,0.00019902,2]
[423987810,1780537843000,-152.011988,0.00019902,2]
[423987807,1780537843000,-163.01014578,0.00019889,2]
[423987808,1780537843000,-181.7454161,0.000199,2]
[423987812,1780537843000,-197.186985,0.00019902,2]
[423987805,1780537843000,-300.0,0.00019729,2]
[423987813,1780537843000,-197.186985,0.00019902,2]
[423987804,1780537843000,-300.0,0.00019729,2]
[423987770,1780537843000,-474.61812732,0.00019632,2]
[423987794,1780537843000,-5177.69126886,0.00019684,2]
[423987802,1780537843000,-300.0,0.00019729,3]
[423987811,1780537843000,-185.3710029,0.00019902,2]
[423987796,1780537843000,-1027.39,0.00019726,2]
[423987788,1780537843000,-277.99100881,0.00019632,2]
[423987790,1780537843000,-434.36095126,0.00019632,2]
[423987792,1780537843000,-310.66204335,0.00019632,2]
[423987780,1780537843000,-323.73812712,0.00019632,2]
[423987784,1780537843000,-899.27257533,0.00019632,2]
[423987782,1780537843000,-575.53444821,0.00019632,2]
[423987786,1780537843000,-243.24213271,0.00019632,2]
[423987774,1780537843000,-1318.38368699,0.00019632,2]
[423987800,1780537843000,-300.0,0.00019729,3]
[423987819,1780537844000,-152.0,0.00016769,7]
[423987824,1780537844000,-8609.54452486,0.0001992,2]
[423987821,1780537844000,-152.0,0.00016774,7]
[423987823,1780537844000,-14735.39765306,0.0001992,2]
[423987822,1780537844000,-152.0,0.00017759,2]
[423987820,1780537844000,-152.0,0.00016769,7]
[423987825,1780537844000,-25805.6157637,0.0001992,2]
[423987887,1780537846000,-13943.1565637,0.0001992,2]
[423987886,1780537846000,-6254.99999999,0.0001992,2]
[423987882,1780537846000,-253.62975516,0.00015246,2]
[423987884,1780537846000,-420.39646247,0.0001992,2]
[423987883,1780537846000,-152.0,0.00016774,7]
[423987912,1780538529000,-1084.49023307,0.00012799,2]
[423987913,1780538546000,-1330.74123023,0.00012799,2]
[423987915,1780538562000,-1254.02730647,0.00012799,2]
[423987916,1780538579000,-3745.97269353,0.00012928,2]
[423987917,1780538596000,-1254.02730647,0.00012928,2]
[423987920,1780538729000,-151.0,0.00013158,7]
[423987922,1780538732000,-124.97536081,0.00013158,7]
[423987921,1780538732000,-26.02463919,0.00013158,7]
[423988176,1780539032000,-452.28667416,0.00012699,2]
[423988211,1780539032000,-500.0,0.00013723,2]
[423988205,1780539032000,-3616.3835835,0.00013712,2]
[423988202,1780539032000,-654.0002806,0.00013699,2]
[423988200,1780539032000,-500.0,0.00013698,2]
[423988197,1780539032000,-217.947124,0.00013598,2]
[423988198,1780539032000,-153.33837905,0.00013698,2]
[423988194,1780539032000,-1003.94,0.00013598,2]
[423988182,1780539032000,-502.22651638,0.00013058,2]
[423988180,1780539032000,-236.47596957,0.00013058,2]
[423988187,1780539032000,-210.57885041,0.00013325,2]
[423988174,1780539032000,-903.0,0.00012571,2]
[423988192,1780539032000,-154.34784648,0.00013421,7]
[423988172,1780539032000,-5000.0,0.00012322,2]
[423988191,1780539032000,-234.43741635,0.00013421,7]
[423988189,1780539032000,-277.3684049,0.00013421,2]
[423988219,1780539032000,-2385.36421509,0.00013723,2]
[423988184,1780539032000,-109.46205554,0.00013158,7]
[423988168,1780539032000,-5000.0,0.0001188,2]
[423988170,1780539032000,-151.6,0.00012,2]
[423988178,1780539032000,-500.0,0.00013058,2]
[423988215,1780539032000,-500.0,0.00013723,2]
[423988213,1780539032000,-500.0,0.00013723,2]
[423988207,1780539032000,-500.0,0.00013723,2]
[423988257,1780539032000,-203.06547683,0.00013997,2]
[423988255,1780539032000,-500.0,0.00013972,2]
[423988253,1780539032000,-300.0,0.00013971,2]
[423988251,1780539032000,-300.0,0.00013971,2]
[423988249,1780539032000,-300.0,0.00013971,2]
[423988245,1780539032000,-300.0,0.00013971,2]
[423988240,1780539032000,-300.0,0.00013971,2]
[423988239,1780539032000,-164.41970162,0.00013971,2]
[423988241,1780539032000,-300.0,0.00013971,2]
[423988243,1780539032000,-300.0,0.00013971,2]
[423988247,1780539032000,-300.0,0.00013971,2]
[423988225,1780539032000,-300.0,0.00013971,2]
[423988236,1780539032000,-135.58029838,0.00013971,2]
[423988209,1780539032000,-500.0,0.00013723,2]
[423988221,1780539032000,-234.43741635,0.00013816,7]
[423988231,1780539032000,-300.0,0.00013971,2]
[423988234,1780539032000,-300.0,0.00013971,2]
[423988217,1780539032000,-507.3,0.00013723,2]
[423988223,1780539032000,-3366.52892716,0.00013939,2]
[423988232,1780539032000,-300.0,0.00013971,2]
[423988229,1780539032000,-300.0,0.00013971,2]
[423988227,1780539032000,-300.0,0.00013971,2]
[423988375,1780539041000,-310.36452317,0.00013997,2]
[423988388,1780539042000,-336.57899379,0.00014245,2]
[423988387,1780539042000,-500.0,0.00014244,2]
[423988386,1780539042000,-931.48,0.00014244,2]
[423988385,1780539042000,-258.83556483,0.00014244,2]
[423988377,1780539042000,-500.0,0.00013997,2]
[423988379,1780539042000,-500.0,0.00013997,2]
[423988389,1780539042000,-10.47210327,0.00014245,2]
[423988383,1780539042000,-234.43741635,0.00014211,7]
[423988382,1780539042000,-297.6729855,0.00014039,2]
[423988381,1780539042000,-500.0,0.00013997,2]
[423988384,1780539042000,-231.52176973,0.00014211,7]
[423988390,1780539042000,-393.12438829,0.00014245,2]
[423988432,1780539042000,-500.0,0.00014271,2]
[423988408,1780539042000,-140.40260486,0.00014245,2]
[423988406,1780539042000,-167.99739404,0.00014245,2]
[423988438,1780539042000,-450.07278628,0.00014518,2]
[423988436,1780539042000,-267.10395927,0.00014518,2]
[423988417,1780539042000,-342.96250724,0.00014245,2]
[423988422,1780539042000,-325.99178291,0.00014245,2]
[423988434,1780539042000,-1000.0,0.00014518,2]
[423988419,1780539042000,-28.80408376,0.00014245,2]
[423988428,1780539042000,-4.06344824,0.00014245,2]
[423988412,1780539042000,-0.3953617,0.00014245,2]
[423988410,1780539042000,-359.59739514,0.00014245,2]
[423988430,1780539042000,-500.0,0.00014271,2]
[423988598,1780539044000,-500.0,0.00014791,2]
[423988589,1780539044000,-300.0,0.00014528,2]
[423988591,1780539044000,-300.0,0.00014528,2]
[423988600,1780539044000,-225.04973054,0.00014791,2]
[423988599,1780539044000,-401.85922044,0.00014791,2]
[423988601,1780539044000,-191.83371482,0.00014791,2]
[423988602,1780539044000,-1003.48375312,0.00014792,2]
[423988593,1780539044000,-300.0,0.00014528,2]
[423988608,1780539044000,-500.0,0.00014793,2]
[423988595,1780539044000,-500.0,0.00014545,2]
[423988594,1780539044000,-300.0,0.00014528,2]
[423988603,1780539044000,-500.0,0.00014792,2]
[423988604,1780539044000,-931.48,0.00014792,2]
[423988597,1780539044000,-234.43741638,0.00014737,7]
[423988607,1780539044000,-500.0,0.00014792,2]
[423988605,1780539044000,-500.0,0.00014792,2]
[423988606,1780539044000,-503.74027364,0.00014792,2]
[423988610,1780539044000,-500.0,0.00014819,2]